Cogmind - Beta 14 @@@ ROGUE MODE // 2024.11.23 @ 00:54:32 Player: akira Result: Destroyed by G-47 Trooper with Particle Gun Performance ------------- Evolutions (3) 1500 Regions Visited (7) 1400 Robots Destroyed (73) 365 Value Destroyed (2609) 2609 Prototype IDs (30) 600 Alien Tech Used (0) 0 Bonus (680) 680 TOTAL SCORE: 7154 Bonus ------- High Alert Combat Kills 180 Entered Garrisons 200 Aligned with FarCom 300 Cogmind --------- Core Integrity 0/700 Matter 268/300 Energy 90/100 System Corruption 21% Temperature Cool (9) Movement Flying (112) Ox1 Location -7/Garrison Parts ------- > --- POWER (1) -------- (None) > --- PROPULSION (4) --- VTOL Module VTOL Module > --- UTILITY (6) ------ Signal Interpreter Improved Focal Shield Point Defense System > --- WEAPON (2) ------- Heavy Rocket Launcher > --- INVENTORY (5) ---- Light Nuclear Core Light Treads Flak Gun Smartbomb Launcher Peak State ------------ > --- POWER ------------ Heavy Deuterium Engine > --- PROPULSION ------- Flight Unit Cesium-ion Thruster Improved Cesium-ion Thruster > --- UTILITY ---------- Small Storage Unit Advanced Weight Redist. System Improved Signal Interpreter Hacking Suite Hacking Suite System Shield > --- WEAPON ----------- Chainsword Longsword +1 > --- INVENTORY -------- Micro Nuclear Core Machine Analyzer Signal Interpreter Improved Signal Interpreter Hacking Suite System Shield Improved Assault Rifle Chainsword [Rating: 44] Favorites ----------- Power Light Nuclear Core Engine Light Ion Engine Power Core Light Nuclear Core Propulsion Flight Unit Treads Light Treads Leg Aluminum Leg Flight Unit Flight Unit Utility Hacking Suite Device Advanced Weight Redist. System Storage Small Storage Unit Processor Improved Signal Interpreter Hackware Hacking Suite Protection Improved Light Armor Plating Weapon Longsword +1 Energy Gun EM Pulse Gun Ballistic Gun Light Assault Rifle Ballistic Cannon Improved Light Cannon Launcher Rocket Launcher Slashing Weapon Longsword +1 Build | -11 -10 -10 -10 -9 -8 -7 -7 ------- Run | Yrd Mat Min Exi Min Mat Fac Gar Slots Evolved 6 | . . . . . 4 2 . Power . | . . . . . . . . Propulsion 2 | . . . . . 2 . . Utility 4 | . . . . . 2 2 . Weapon . | . . . . . . . . Parts Attached 102 | 5 8 8 1 7 16 16 41 Power 19 | 1 1 2 . 1 4 5 5 Engine 8 | 1 1 1 . 1 1 2 1 Core 11 | . . 1 . . 3 3 4 Reactor . | . . . . . . . . Propulsion 41 | 2 1 2 . 4 6 4 22 Treads 5 | . . . . 2 . . 3 Leg 16 | 2 1 2 . . 2 . 9 Wheel . | . . . . . . . . Hover . | . . . . . . . . Flight 20 | . . . . 2 4 4 10 Utility 17 | 1 2 . . . 2 4 8 Device 4 | . . . . . 1 1 2 Storage 1 | 1 . . . . . . . Processor 3 | . 1 . . . 1 . 1 Hackware 7 | . 1 . . . . 3 3 Protection 2 | . . . . . . . 2 Artifact . | . . . . . . . . Weapon 25 | 1 4 4 1 2 4 3 6 Energy Gun 1 | . 1 . . . . . . Energy Cannon . | . . . . . . . . Ballistic Gun 9 | 1 3 2 . 2 . 1 . Ballistic Cannon 1 | . . . . . 1 . . Launcher 5 | . . 2 . . . . 3 Special Weapon . | . . . . . . . . Impact Weapon . | . . . . . . . . Slashing Weapon 9 | . . . 1 . 3 2 3 Piercing Weapon . | . . . . . . . . Special Melee Weapon . | . . . . . . . . Unidentified Prototypes 3 | . . . . . . 3 . Parts Lost 39 | . . 3 . 1 3 10 22 Power 6 | . . 1 . . 1 1 3 Propulsion 19 | . . 2 . 1 2 4 10 Utility 12 | . . . . . . 5 7 Weapon 2 | . . . . . . . 2 Highest Loss Streak 7 | . . 3 . 1 2 7 6 To Critical Strikes 1 | . . . . . . 1 . Average Slot Usage (%) 85 | . 96 99 89 76 85 85 59 Engine 3 | . 14 11 . 7 . 1 1 Core 6 | . . 2 14 6 8 5 5 Leg 8 | . 28 27 28 6 . . 5 Flight 14 | . . . . 12 22 19 10 Device 5 | . . . . . 9 7 2 Storage 8 | . 14 14 14 14 9 6 . Processor 6 | . 10 . . . 8 6 5 Hackware 11 | . 3 14 14 14 9 20 9 Ballistic Gun 4 | . 22 18 9 8 . . . Ballistic Cannon 2 | . . . . . 5 . . Slashing Weapon 9 | . . . 9 1 12 15 13 Peak Build Rating 44 | 5 9 11 18 17 29 44 37 Average Rating 23 | 4 7 9 15 9 26 37 26 On Entrance 13 | . 5 9 11 17 8 29 28 Naked Turns . | . . . . . . . . Heaviest Build 24 | 9 12 15 13 13 17 20 24 Greatest Support 40 | 20 20 20 20 40 25 26 40 Greatest Overweight (x) 5 | . . . . 1 . 1 5 Average Overweight (x) . | . . . . . . . . Largest Inventory Capacity 8 | 8 8 8 8 8 8 8 5 Average Capacity 7 | 7 8 8 8 8 8 7 5 Most Carried 8 | 5 8 8 8 8 8 8 5 Average Carried 7 | 2 6 7 7 7 7 7 3 Final Capacity 8 | 8 8 8 8 8 8 5 5 Final Carried 8 | 5 8 7 8 8 8 5 5 Class Distribution -------------------- 45% | Scavenger-Mutant 31% | Mutant 9% | Hacker-Mutant 7% | Scavenger-Sprinter 4% | Hacker-Sprinter Dominant Class ---------------- Mutant | -10/Materials Mutant | -10/Mines Mutant | -10/Exiles Scavenger-Mutant | -9/Mines Scavenger-Mutant | -8/Materials Hacker-Mutant | -7/Factory Mutant | -7/Garrison Resources | -11 -10 -10 -10 -9 -8 -7 -7 ----------- Run | Yrd Mat Min Exi Min Mat Fac Gar Matter Collected 1295 | 242 136 139 . 43 215 105 415 Remotely . | . . . . . . . . Salvage Created 2722 | . 173 92 . 57 1135 301 964 Parts 143 | . 9 5 . 6 53 23 47 Haulers Intercepted . | . . . . . . . . Recyclers Shooed . | . . . . . . . . Parts Field Recycled . | . . . . . . . . Retrieved Matter . | . . . . . . . . Parts Self-Destructed . | . . . . . . . . Prevented . | . . . . . . . . Kills | -11 -10 -10 -10 -9 -8 -7 -7 ------- Run | Yrd Mat Min Exi Min Mat Fac Gar Combat Hostiles Destroyed 61 | . 4 5 . 4 21 3 24 Melee 49 | . . . . 2 21 3 23 Guns 10 | . 4 4 . 2 . . . AOE 2 | . . 1 . . . . 1 Classes Destroyed 11 | . 2 2 . . 4 2 1 Recycler 1 | . . . . . . 1 . Operator 5 | . 1 . . . 2 2 . Watcher 6 | . . . . . 4 2 . Swarmer 19 | . . 3 . 4 3 . 9 Grunt 30 | . 4 1 . . 14 . 11 Brawler 1 | . . . . . . . 1 Duelist 1 | . . . . . 1 . . Sentry 5 | . . . . . 2 1 2 Demolisher 1 | . . 1 . . . . . Hunter 2 | . . . . . 1 . 1 Programmer 2 | . . . . . . 2 . Best Kill Streak 6 | . 2 3 . 2 6 1 3 Combat Bots Only 6 | . 2 3 . 2 6 1 3 Max Kills in Single Turn 1 | . 1 1 . 1 1 1 1 Gunslinging . | . . . . . . . . Exploded 1 | . . 1 . . . . 1 Melee 1 | . . . . 1 1 1 1 Uniques/NPCs Destroyed . | . . . . . . . . Combat | -11 -10 -10 -10 -9 -8 -7 -7 -------- Run | Yrd Mat Min Exi Min Mat Fac Gar Hostile Shots Fired 476 | . 24 46 . 42 46 88 230 Missed 174 | . 7 8 . 13 16 45 85 Damage Taken 3919 | . 202 455 . 223 524 533 1982 Core 972 | . 50 57 . 78 72 195 520 Absorbed by Shields 38 | . . . . . . . 38 Ignored by Resistances 32 | . . . . . . . 32 Regen/Repaired (Parts) 11 | . . . . . . 11 . Core Remaining (%) 70 | 100 . . . 26 86 . . Volleys Fired 78 | . 24 32 . 14 6 . 2 Largest 2 | . 2 2 . 1 1 . 1 Hottest 40 | . 40 40 . 20 39 . 39 Shots Fired 125 | . 48 54 . 14 6 . 3 Gun 114 | . 48 52 . 14 . . . Cannon 6 | . . . . . 6 . . Launcher 5 | . . 2 . . . . 3 Special . | . . . . . . . . Kinetic 120 | . 48 52 . 14 6 . . Thermal . | . . . . . . . . Explosive 5 | . . 2 . . . . 3 Electromagnetic . | . . . . . . . . Robot Hit Streak 13 | . 13 8 . 4 1 . 2 Robot Miss Streak 5 | . 2 5 . 3 3 . 1 Penetration Max . | . . . . . . . . Secondary Targets 1 | . . 1 . . . . . Max Gunslinging Chain 1 | . . 1 . . . . . Shots Hit Robots 216 | . 35 29 . 10 54 23 65 Core Hits 90 | . 14 11 . 3 26 7 29 Critical Kills . | . . . . . . . . Critical Parts Destroyed . | . . . . . . . . Critical Strikes 19 | . . . . . 6 3 10 Sever 19 | . . . . . 6 3 10 Melee Attacks 202 | . . . . 2 79 33 88 Impact . | . . . . . . . . Slashing 202 | . . . . 2 79 33 88 Piercing . | . . . . . . . . Sneak Attacks 8 | . . . . . 2 4 2 Combat Hostiles 3 | . . . . . 1 . 2 Follow-up Attacks 10 | . . . . . 2 2 6 Damage Inflicted 7743 | . 291 251 . 164 2692 1235 3110 Guns 588 | . 291 230 . 67 . . . Cannons 40 | . . . . . 40 . . Explosions 184 | . . 21 . . . . 163 Melee 6931 | . . . . 97 2652 1235 2947 Ramming . | . . . . . . . . Kinetic 628 | . 291 230 . 67 40 . . Thermal . | . . . . . . . . Explosive 184 | . . 21 . . . . 163 Electromagnetic . | . . . . . . . . Impact . | . . . . . . . . Slashing 6931 | . . . . 97 2652 1235 2947 Piercing . | . . . . . . . . Highest Corruption 21 | . . . . . . 9 21 Average Corruption 17 | . . . . . . 8 18 Corruption Purged . | . . . . . . . . Corruption Blocked . | . . . . . . . . Effects 46 | . . . . . . 2 44 Message Errors 12 | . . . . . . . 12 Matter Fused 9 | . . . . . . . 9 Heat Flow Errors 9 | . . . . . . 1 8 Energy Discharges 6 | . . . . . . 1 5 Parts Rejected 1 | . . . . . . . 1 Data Loss (minor) 2 | . . . . . . . 2 Data Loss (major) 4 | . . . . . . . 4 Misfires 1 | . . . . . . . 1 Alerts 1 | . . . . . . . 1 Misdirections 1 | . . . . . . . 1 Overload Shots . | . . . . . . . . Overflow Damage 364 | . . . . 26 115 133 90 Projectiles . | . . . . . . . . Explosions 2 | . . . . . . . 2 Melee 362 | . . . . 26 115 133 88 Knockbacks . | . . . . . . . . Impact . | . . . . . . . . Kinetic . | . . . . . . . . Secondary . | . . . . . . . . Self-Inflicted Damage 79 | . . 16 . . . . 63 Shots 2 | . . 1 . . . . 1 Rammed . | . . . . . . . . Targets Rammed . | . . . . . . . . Kicked . | . . . . . . . . Crushed . | . . . . . . . . Highest Temperature 265 | . 18 36 . 4 3 259 265 Average Temperature 66 | . 7 15 . 2 3 123 94 Received Heat Transfer 1214 | . 111 144 . . 198 60 701 Effects 2 | . . . . . . . 2 Interference 2 | . . . . . . . 2 Siege Activations . | . . . . . . . . Robots Corrupted . | . . . . . . . . Combat Hostiles . | . . . . . . . . Parts Fried . | . . . . . . . . Impact Corruptions . | . . . . . . . . Robots Melted . | . . . . . . . . Combat Hostiles . | . . . . . . . . Parts Melted . | . . . . . . . . Heat Transferred . | . . . . . . . . Parts Sabotaged . | . . . . . . . . Parts Stolen . | . . . . . . . . Parts Stripped . | . . . . . . . . Power Chain Reactions . | . . . . . . . . Alert | -11 -10 -10 -10 -9 -8 -7 -7 ------- Run | Yrd Mat Min Exi Min Mat Fac Gar Peak Influence 815 | . 136 145 . 80 439 276 815 Initial 199 | . . 1 . . 31 199 18 Average 138 | . 34 45 . 63 147 105 336 Maximum Alert Level 3 | . . . . . 2 1 3 Low Security (%) 70 | 100 100 100 . 100 60 75 40 Level 1 21 | . . . . . 33 24 16 Level 2 6 | . . . . . 5 . 28 Level 3 1 | . . . . . . . 14 Level 4 . | . . . . . . . . Level 5 . | . . . . . . . . High Security . | . . . . . . . . Max Security . | . . . . . . . . Squads Dispatched 17 | . 3 . . . 10 4 . Investigation 11 | . 2 . . . 8 1 . Extermination 2 | . . . . . . 2 . Reinforcement 4 | . 1 . . . 2 1 . Assault . | . . . . . . . . Garrison . | . . . . . . . . Intercept . | . . . . . . . . Searches Triggered . | . . . . . . . . Construction Impeded . | . . . . . . . . Haulers Reinforced . | . . . . . . . . Active Scanning Responses . | . . . . . . . . Cargo Convoy Interrupts 1 | . . . . . . 1 . Stealth | -11 -10 -10 -10 -9 -8 -7 -7 --------- Run | Yrd Mat Min Exi Min Mat Fac Gar Distress Signals 8 | . 1 . . . 7 . . Communications Jammed . | . . . . . . . . Distress Signals . | . . . . . . . . Times Spotted 123 | . 7 8 . 4 39 25 40 Peak Tracking Total 15 | . 2 4 . 4 6 15 7 Tactical Retreats 27 | . 1 2 . . 9 1 14 Traps | -11 -10 -10 -10 -9 -8 -7 -7 ------- Run | Yrd Mat Min Exi Min Mat Fac Gar Traps Triggered 5 | . . . . . 2 . 3 Indirectly . | . . . . . . . . Trap Hack Attempts . | . . . . . . . . Triggered . | . . . . . . . . Disarmed . | . . . . . . . . Reprogrammed . | . . . . . . . . Reused . | . . . . . . . . Traps Extracted . | . . . . . . . . Installed . | . . . . . . . . Triggered . | . . . . . . . . Machines | -11 -10 -10 -10 -9 -8 -7 -7 ---------- Run | Yrd Mat Min Exi Min Mat Fac Gar Machines Disabled 1 | . . . . . 1 . . Max in Single Turn 1 | . . . . . 1 . . Garrison Access 2 | . . . . . . 2 . Machines Repaired . | . . . . . . . . Machines Dismantled . | . . . . . . . . Machines Sabotaged . | . . . . . . . . Overloaded Fab Kills . | . . . . . . . . Hacking | -11 -10 -10 -10 -9 -8 -7 -7 --------- Run | Yrd Mat Min Exi Min Mat Fac Gar Machines Accessed 21 | . 4 . 1 . 9 6 1 Terminals 13 | . 4 . . . 8 . 1 Fabricators 1 | . . . . . . 1 . Repair Stations 1 | . . . . . . 1 . Recycling Units . | . . . . . . . . Scanalyzers 2 | . . . . . 1 1 . Garrison Access 3 | . . . . . . 3 . Total Hacks 69 | . 14 . 1 . 35 16 3 Successful 32 | . 5 . 1 . 16 9 1 Failed 36 | . 9 . . . 18 7 2 Catastrophic 6 | . 1 . . . 4 . 1 Database Lockouts 1 | . . . . . 1 . . Manual 43 | . 10 . 1 . 32 . . Terminals 49 | . 14 . . . 32 . 3 Fabricators 3 | . . . . . . 3 . Repair Stations 3 | . . . . . . 3 . Recycling Units . | . . . . . . . . Scanalyzers 5 | . . . . . 3 2 . Garrison Access 8 | . . . . . . 8 . Terminal Hacks 20 | . 5 . 1 . 13 . 1 Part Schematic 1 | . . . . . 1 . . Robot Analysis 7 | . 2 . . . 5 . . Prototype ID Bank 2 | . 1 . . . 1 . . Scanalyzer Index 1 | . 1 . . . . . . Alert Level 5 | . 1 . . . 4 . . Unreport Threat 1 | . . . . . 1 . . Locate Traps 1 | . . . . . 1 . . Patrol Navigation 1 | . . . . . . . 1 Derelict Proto ID Bank 1 | . . . 1 . . . . Fabricator Hacks 2 | . . . . . . 2 . Load Schematic 1 | . . . . . . 1 . Build 1 | . . . . . . 1 . Repair Station Hacks 2 | . . . . . . 2 . Scan Component 1 | . . . . . . 1 . Repair 1 | . . . . . . 1 . Recycling Unit Hacks . | . . . . . . . . Scanalyzer 5 | . . . . . 3 2 . Insert Component 3 | . . . . . 2 1 . Analyze 2 | . . . . . 1 1 . Garrison Access Hacks 3 | . . . . . . 3 . Unlock Access 1 | . . . . . . 1 . Seal Access 2 | . . . . . . 2 . Unauthorized Hacks . | . . . . . . . . Terminals . | . . . . . . . . Fabricators . | . . . . . . . . Repair Stations . | . . . . . . . . Recycling Units . | . . . . . . . . Scanalyzers . | . . . . . . . . Garrison Access . | . . . . . . . . Data Cores Recovered 1 | . . . . . 1 . . Used . | . . . . . . . . Hacking Detections 17 | . 4 . . . 9 3 1 Full Trace Events 14 | . 3 . . . 9 1 1 Feedback Events . | . . . . . . . . Feedback Blocked . | . . . . . . . . Robot Schematics Acquired . | . . . . . . . . Robots Built . | . . . . . . . . Authchips . | . . . . . . . . Time . | . . . . . . . . Total Robot Build Rating . | . . . . . . . . Part Schematics Acquired 2 | . . . . . 1 1 . Parts Built 1 | . . . . . . 1 . Authchips . | . . . . . . . . Time 67 | . . . . . . 67 . Total Part Build Rating 4 | . . . . . . 4 . Parts Repaired 1 | . . . . . . 1 . Time 19 | . . . . . . 19 . Parts Recycled . | . . . . . . . . Recycled Matter . | . . . . . . . . Retrieved Matter . | . . . . . . . . Retrieved Components . | . . . . . . . . Parts Scanalyzed 2 | . . . . . 1 1 . Part Schematics Acquired 1 | . . . . . . 1 . Parts Damaged 1 | . . . . . . 1 . Bothacking | -11 -10 -10 -10 -9 -8 -7 -7 ------------ Run | Yrd Mat Min Exi Min Mat Fac Gar Used RIF Installer . | . . . . . . . . Robots Hacked . | . . . . . . . . Non-combat . | . . . . . . . . Combat . | . . . . . . . . Robot Hacks Applied . | . . . . . . . . Relay Couplers Released . | . . . . . . . . Fabnet Peak Effective % . | . . . . . . . . Robots Rewired . | . . . . . . . . Allies Hacked . | . . . . . . . . Hacks Repelled . | . . . . . . . . Allies | -11 -10 -10 -10 -9 -8 -7 -7 -------- Run | Yrd Mat Min Exi Min Mat Fac Gar Total Allies . | . . . . . . . . Largest Group . | . . . . . . . . Highest-Rated Group . | . . . . . . . . Highest-Rated Ally . | . . . . . . . . Total Orders . | . . . . . . . . Ally Attacks . | . . . . . . . . Total Damage . | . . . . . . . . Kills . | . . . . . . . . Allies Corrupted . | . . . . . . . . Allies Melted . | . . . . . . . . Intel | -11 -10 -10 -10 -9 -8 -7 -7 ------- Run | Yrd Mat Min Exi Min Mat Fac Gar Robot Analysis Total 6 | . 2 . . . 4 . . Derelict Logs Recovered 1 | . . . . 1 . . . Drone Launches . | . . . . . . . . Drone Recoveries . | . . . . . . . . Exploration | -11 -10 -10 -10 -9 -8 -7 -7 ------------- Run | Yrd Mat Min Exi Min Mat Fac Gar Turns Passed 8267 | 52 964 780 459 104 3579 1333 996 Spaces Moved 5721 | 38 370 448 381 120 2241 1508 615 Core 19 | 7 . . . . . . 12 Treads 33 | . . . . 4 . . 29 Legs 1425 | 31 370 448 381 6 25 . 164 Wheels . | . . . . . . . . Hover . | . . . . . . . . Flight 4244 | . . . . 110 2216 1508 410 Fastest Speed 26 | 50 120 120 120 37 31 29 26 Average Speed 58 | 107 120 120 120 47 36 32 76 Slowest Speed 435 | 120 120 120 120 190 120 100 435 Overloaded Moves . | . . . . . . . . Propulsion Burnouts . | . . . . . . . . Robots Hopped . | . . . . . . . . Cave-ins Triggered . | . . . . . . . . Exploration Rate (%) 53 | 3 59 85 86 40 83 33 40 Regions Visited 7 Branch Regions 3 Pre-discovered Areas . | . . . . . . . . Known Exits Taken 3 | . 1 . . . 1 1 . Unknown Exits Taken 4 | 1 . 1 1 1 . . . Scrap Searched 1 | . . 1 . . . . . Spaces Dug 33 | . . . . . 24 7 2 Terrain Destroyed 104 | . . 26 . . 24 7 47 Melee 33 | . . . . . 24 7 2 Projectile . | . . . . . . . . AOE 71 | . . 26 . . . . 45 Terrain Rammed . | . . . . . . . . Walls Destroyed . | . . . . . . . . Machines Disabled . | . . . . . . . . Actions | -11 -10 -10 -10 -9 -8 -7 -7 --------- Run | Yrd Mat Min Exi Min Mat Fac Gar Total 10367 | 47 851 646 383 153 4922 2318 1047 Wait 4167 | . 442 154 . 4 2554 744 269 Move 5715 | 37 369 447 380 119 2240 1508 615 Hop . | . . . . . . . . Pick Up 59 | 5 4 3 1 2 14 9 21 Fast Attach 28 | 5 2 . . 2 4 6 9 Attach 43 | . 1 4 . 1 7 7 23 Detach 9 | . . . . 1 3 3 2 Swap 31 | . 5 4 1 4 5 3 9 Drop 43 | . 4 2 1 4 14 9 9 Fire 78 | . 24 32 . 14 6 . 2 Melee 185 | . . . . 2 75 29 79 Ram . | . . . . . . . . Kick . | . . . . . . . . Crush . | . . . . . . . . Escape Stasis 9 | . . . . . . . 9 Rewire . | . . . . . . . . Trap . | . . . . . . . . Miscellaneous . | . . . . . . . . Route ------- -11/Scrapyard -10/Materials (discovered 2 exits: [*Mat] / *Min) -10/Mines (discovered 3 exits: [*Mat x2] / *Exi) -10/Exiles -9/Mines -8/Materials (discovered 3 exits: *Fac x3) -7/Factory (discovered 2 exits: *Fac / Gar) -7/Garrison (discovered 1 exit: [*Fac]) History --------- Turn | Location | Event 25 | -11/Scrapyard | Discovered new exit (range 15) 53 | -11/Scrapyard | Entered Materials 314 | -10/Materials | Build established: Mutant 720 | -10/Materials | Discovered new exit (range 8) 728 | -10/Materials | Identified exit to Mines 854 | -10/Materials | Discovered new exit (range 5) 1017 | -10/Materials | Entered Mines 1018 | -10/Mines | Assembled infested the area 1023 | -10/Mines | Assisted by a Guerilla fighting off Assembled 1024 | -10/Mines | Received a Rocket Launcher from a helpful Derelict 1390 | -10/Mines | Discovered new exit (range 15) 1693 | -10/Mines | Lost 3 parts (1p2n) 1766 | -10/Mines | Discovered new exit (range 9) 1791 | -10/Mines | Deemed a non-threat by the Exiles lab entrance 1791 | -10/Mines | Discovered new exit (range 5) 1797 | -10/Mines | Entered Exiles 1826 | -10/Exiles | Met 8R-AWN 1847 | -10/Exiles | Met EX-HEX 1881 | -10/Exiles | Met EX-BIN 1898 | -10/Exiles | Aligned with FarCom system 1899 | -10/Exiles | Given EX-Vault access code 1929 | -10/Exiles | Opened EX-Vault 1937 | -10/Exiles | Found Longsword +1 1966 | -10/Exiles | Warned to stay clear of 0b10 Research branches 2001 | -10/Exiles | Met EX-DEC 2043 | -10/Exiles | Visited The Gauntlet 2243 | -10/Exiles | Discovered new exit (range 12) 2256 | -10/Exiles | Left Exiles lab with Longsword +1 2256 | -10/Exiles | Entered Mines 2260 | -9/Mines | Core integrity fell below 50% 2327 | -9/Mines | Found a hidden stash of uninstalled traps 2337 | -9/Mines | Learned 2 Materials zone layouts 2356 | -9/Mines | Discovered new exit (range 8) 2360 | -9/Mines | Entered Materials 2360 | -8/Materials | Evolved 4 slots: Propulsion x2, Utility x2 2597 | -8/Materials | Build established: Scavenger-Mutant 2800 | -8/Materials | Discovered new exit (range 15) 2806 | -8/Materials | Identified exit to Factory 4643 | -8/Materials | Discovered exit to Factory (range 3) 5800 | -8/Materials | Discovered exit to Factory (range 16) 5868 | -8/Materials | Central database locked down 5939 | -8/Materials | Entered Factory 5939 | -7/Factory | Evolved 2 slots: Utility x2 5978 | -7/Factory | Discovered new exit (range 5) 5979 | -7/Factory | Identified exit to Factory 6364 | -7/Factory | Lost 3 parts (2n1u) 6371 | -7/Factory | Repaired Cesium-ion Thruster 6835 | -7/Factory | Fabricated Imp. Cesium-ion Thruster? 6972 | -7/Factory | Build established: Hacker-Mutant 7204 | -7/Factory | Cargo convoy interrupted 7272 | -7/Factory | Identified exit to Garrison 7272 | -7/Factory | Entered Garrison 7281 | -7/Garrison | Lost 7 parts (1p2n4u) 7508 | -7/Garrison | System corruption reached 10% 7551 | -7/Garrison | Lost 6 parts (1p1n4u) 7596 | -7/Garrison | Core integrity fell below 50% 8108 | -7/Garrison | Core integrity fell below 20% 8239 | -7/Garrison | Discovered new exit (range 8) 8268 | -7/Garrison | Destroyed by G-47 Trooper with Particle Gun Last Messages --------------- 08226_ VTOL Module destroyed. 08228_ Y-54 Guardian Lgt. Treads severed. 08232_ Y-54 Guardian destroyed. 08236_ Acquired Imp. Light Armor Plating. 08237_ Acquired 43 matter. 08239_ EXIT=FOUND 08241_ System corrupted: Substantial component data lost. 08244_ Chainsword destroyed. 08257_ Acquired 10 matter. 08260_ System corrupted: FCS attempts to trigger Hvy. Rocket Launcher. 08260_ System corrupted: Hvy. Rocket Launcher misfires. 08260_ Imp. Light Armor Plating destroyed. 08260_ Destroyed Imp. Light Armor Plating. 08262_ Acquired Flak Gun. 08265_ Destroyed Lgt. Nuclear Core. 08265_ G-47 Trooper destroyed. 08266_ Lgt. Nuclear Core destroyed. Map ----- +----------------------------------------------------+ | ?????????????????????????????????????????????????? | | ?????????????????????????????????????????????????? | | ?????????????????????????????????????????????????? | | ?????????????????????????????????????????????????? | | ?????????????????????????????????????????????????? | | ?????????????????????????????????????????????????? | | ?????????????????????????????????????????????????? | | ?????????????????????????????????????????????????? | | ?????????????????????????????????????????????????? | | ??????????????????????????????######???#######???? | | ??????????????????????????????#! !????#!! ]#???? | | ??????????????????????????????#! !????#! ]#???? | | ???????????????????????????????# ######^ #???? | | ???????????????????????????????# + #???? | | ???????????????????????????????# + #???? | | ????????????????######?????????# ######^ ]#???? | | ????????????????# #?????????# #????#! ]#???? | | ????????????????? < #?????????# #????#!! ]#???? | | ?????????????????? #?????????# #????#######???? | | ??????????????????# #?????????# #??????????????? | | ????????????####### #?????????# #??????????????? | | ??????# g # #?????????# #??????????????? | | ???????????# ## # #####?????# #??????????????? | | ?????????????# g% # #?????# #??????????????? | | ?????????????# *[ ####### ###########????? | | ?????????????# @ #????? | | ?????????????# #????? | | ?????????????## ## ##### ######## #????? | | ??????????????### # ## #???# #??????# #????? | | ??????????????????# ###### #???# #####??# #????? | | ??????????????????# ?????# #???# ## ##?# #????? | | ??????????????????#??????# #???# # #?# #????? | | ????????????????????????? #???# #?# #?#### | | ?????????????????????????###???# ## ##?# ## | | ???????????????????????????????# #####?## ## | | ???????????????????????????????# ####### | | ???????????????????????????????# | | ???????????????????????????????# | | ???????????????????????????????##"####### ## | | ????????????????????????????????# #???### ## | | ????????????????????????????????# ???# | | ????????????????????????????????###???# | | ??????????????????????????????????????# | | ??????????????????????????????????????# * | | ??????????????????????????????????????###*% ## | | ??????????????????????????############### ^^## | | ??????????????????????????# =!%=% ^^^ % | | ??????????????????????????# ==***[ ! | | ????########??????????????# =!!=**% | | ????#""""""#??????????????# ####%########### | +----------------------------------------------------+ Best States ------------- Heat Dissipation 34 Energy Generation 16 Energy Capacity 290 Matter Stores 300 Matter Capacity 300 Sight Range 16 Terrain Scan Density 10 Additional Mass Support 9 Armor Coverage 150 Resistance: KI 25 Point Defense Rating 80 Evasion (%) 64 Recoil Reduction 2 Offensive Hacking 30 Defensive Hacking 10 Item Schematics ----------------- Hacking Suite | -8/Materials | Hacked Imp. Cesium-ion Thruster | -7/Factory | Scanalyzed Robot Schematics ------------------ None Fabricated ------------ Imp. Cesium-ion Thruster | x1 | -7/Factory Alien Tech Used ----------------- None Achievements -------------- Watch This! Challenges ------------ None Game ------ Seed TachyonWarpArray Manual? 0 Play Time 01:42:56 Cumulative 23.6 hours Start 2024.11.22 @ 23:11:05 End 2024.11.23 @ 00:54:32 Sessions 1 Manual Loads 0 Difficulty Rogue Special Mode None Game No. 37 Rogue 37 Adventurer 0 Explorer 0 Win Type - Total 0 Types 0/0/0/0/0/0/0/0/0 Lore% 7 Gallery% 18 Achievement% 19 Wizard Run 0 Options --------- Layout 1 ASCII 0 Keyboard 0 Movement Mouse Keybinds 0 Fullscreen 1 Font 16/SmallcapsGlow Map View 55x38 Zoom Use 15% Tactical HUD 1 Map Filters NONE Filters NONE Steam 1 RUN: 4121e566-c4bb-4d27-be4f-111f1a39e652